[Event "Titled Tuesday Blitz February 21 Early 2023"]
[White "Zaksaite, Salomeja"]
[Black "Principe, Gerson"]
[WhiteFideId "12801496"]
[BlackFideId "3804550"]
[WhiteElo "2283"]
[BlackElo "2226"]
[Result "0-1"]
[Round "01"]
[TimeControl "180+2"]
[Date "2023.02.21"]
[WhiteClock "0:00:01"]
[BlackClock "0:00:10"]

1. d4 {[%clk 0:03:00]}  Nf6 {[%clk 0:02:59]} 2. Nc3 {[%clk 0:03:00]}  d5 {[%clk 0:02:57]} 3. Bf4 {[%clk 0:03:00]}  e6 {[%clk 0:02:51]} 4. Nb5 {[%clk 0:02:51]}  Na6 {[%clk 0:02:50]} 5. a4 {[%clk 0:02:42]}  c6 {[%clk 0:02:47]} 6. Na3 {[%clk 0:02:37]}  Bd6 {[%clk 0:02:44]} 7. e3 {[%clk 0:02:36]}  Nb8 {[%clk 0:02:34]} 8. Bd3 {[%clk 0:02:33]}  Bxf4 {[%clk 0:02:24]} 9. exf4 {[%clk 0:02:32]}  Qb6 {[%clk 0:02:10]} 10. Ne2 {[%clk 0:02:07]}  O-O {[%clk 0:01:59]} 11. b3 {[%clk 0:01:54]}  c5 {[%clk 0:01:54]} 12. O-O {[%clk 0:01:49]}  Nc6 {[%clk 0:01:51]} 13. Nb5 {[%clk 0:01:25]}  a6 {[%clk 0:01:25]} 14. dxc5 {[%clk 0:01:22]}  Qxc5 {[%clk 0:01:23]} 15. Nbd4 {[%clk 0:01:21]}  Bd7 {[%clk 0:01:23]} 16. Nxc6 {[%clk 0:01:09]}  Bxc6 {[%clk 0:01:13]} 17. Nd4 {[%clk 0:01:06]}  Rac8 {[%clk 0:01:10]} 18. Nxc6 {[%clk 0:01:04]}  Qxc6 {[%clk 0:01:09]} 19. Qe2 {[%clk 0:01:01]}  Qc3 {[%clk 0:01:03]} 20. Rfe1 {[%clk 0:00:48]}  g6 {[%clk 0:01:00]} 21. Rad1 {[%clk 0:00:38]}  Rfe8 {[%clk 0:00:39]} 22. h3 {[%clk 0:00:16]}  Nd7 {[%clk 0:00:32]} 23. Qg4 {[%clk 0:00:13]}  Nc5 {[%clk 0:00:20]} 24. f5 {[%clk 0:00:02]}  Nxd3 {[%clk 0:00:20]} 25. cxd3 {[%clk 0:00:02]}  exf5 {[%clk 0:00:18]} 26. Rxe8+ {[%clk 0:00:02]}  Rxe8 {[%clk 0:00:18]} 27. Qf3 {[%clk 0:00:01]}  Qd4 {[%clk 0:00:14]} 28. Kh2 {[%clk 0:00:01]}  Kg7 {[%clk 0:00:13]} 29. Rc1 {[%clk 0:00:01]}  Re7 {[%clk 0:00:12]} 30. Rc8 {[%clk 0:00:01]}  Qe5+ {[%clk 0:00:12]} 31. Qg3 {[%clk 0:00:01]}  f4 {[%clk 0:00:11]} 32. Qf3 {[%clk 0:00:01]}  Qf5 {[%clk 0:00:11]} 33. h4 {[%clk 0:00:01]}  Qxc8 {[%clk 0:00:10]} 0-1


[Site "https://www.chess.com"]

[Event "Titled Tuesday Blitz February 21 Early 2023"]
[White "Mendez Machado, Andre"]
[Black "Aggelis, Nikolaos"]
[WhiteFideId "6603793"]
[BlackFideId "4213220"]
[WhiteElo "1974"]
[BlackElo "2270"]
[Result "0-1"]
[Round "01"]
[TimeControl "180+2"]
[Date "2023.02.21"]
[WhiteClock "0:00:03"]
[BlackClock "0:01:00"]

1. e4 {[%clk 0:02:56]}  c6 {[%clk 0:02:58]} 2. d4 {[%clk 0:02:55]}  d5 {[%clk 0:02:59]} 3. f3 {[%clk 0:02:56]}  g6 {[%clk 0:02:54]} 4. c3 {[%clk 0:02:53]}  Bg7 {[%clk 0:02:55]} 5. Na3 {[%clk 0:02:53]}  e5 {[%clk 0:02:46]} 6. exd5 {[%clk 0:02:50]}  exd4 {[%clk 0:02:46]} 7. dxc6 {[%clk 0:02:18]}  Nxc6 {[%clk 0:02:44]} 8. Nb5 {[%clk 0:01:57]}  Nge7 {[%clk 0:02:41]} 9. Bd3 {[%clk 0:01:39]}  O-O {[%clk 0:02:40]} 10. Ne2 {[%clk 0:01:36]}  dxc3 {[%clk 0:02:39]} 11. Nbxc3 {[%clk 0:01:31]}  Nb4 {[%clk 0:02:39]} 12. Bb1 {[%clk 0:01:25]}  Qxd1+ {[%clk 0:02:37]} 13. Kxd1 {[%clk 0:01:26]}  Rd8+ {[%clk 0:02:34]} 14. Ke1 {[%clk 0:01:26]}  Bf5 {[%clk 0:02:34]} 15. Bg5 {[%clk 0:01:08]}  Re8 {[%clk 0:02:29]} 16. Bxe7 {[%clk 0:00:56]}  Rxe7 {[%clk 0:02:29]} 17. Bxf5 {[%clk 0:00:56]}  gxf5 {[%clk 0:02:27]} 18. Kf2 {[%clk 0:00:49]}  Nd3+ {[%clk 0:02:26]} 19. Kg3 {[%clk 0:00:41]}  Nxb2 {[%clk 0:02:25]} 20. Rab1 {[%clk 0:00:33]}  Nc4 {[%clk 0:02:21]} 21. Rhc1 {[%clk 0:00:25]}  Rae8 {[%clk 0:02:17]} 22. Nf4 {[%clk 0:00:15]}  Nd2 {[%clk 0:01:58]} 23. Rb2 {[%clk 0:00:14]}  Nc4 {[%clk 0:01:46]} 24. Rb4 {[%clk 0:00:12]}  Ne3 {[%clk 0:01:40]} 25. Ncd5 {[%clk 0:00:09]}  Nxd5 {[%clk 0:01:40]} 26. Nxd5 {[%clk 0:00:10]}  Rd7 {[%clk 0:01:41]} 27. Nf4 {[%clk 0:00:09]}  Bh6 {[%clk 0:01:39]} 28. Rcb1 {[%clk 0:00:08]}  b6 {[%clk 0:01:38]} 29. Kh3 {[%clk 0:00:07]}  Rd2 {[%clk 0:01:35]} 30. Nh5 {[%clk 0:00:07]}  Re6 {[%clk 0:01:28]} 31. Ng3 {[%clk 0:00:06]}  Rxa2 {[%clk 0:01:21]} 32. Nxf5 {[%clk 0:00:06]}  Bf8 {[%clk 0:01:21]} 33. Rg4+ {[%clk 0:00:06]}  Rg6 {[%clk 0:01:20]} 34. Rc1 {[%clk 0:00:05]}  Rxg4 {[%clk 0:01:19]} 35. fxg4 {[%clk 0:00:05]}  Ra5 {[%clk 0:01:12]} 36. Rc8 {[%clk 0:00:06]}  h5 {[%clk 0:01:12]} 37. Ne7+ {[%clk 0:00:05]}  Kg7 {[%clk 0:01:11]} 38. Nf5+ {[%clk 0:00:06]}  Kf6 {[%clk 0:01:06]} 39. Rxf8 {[%clk 0:00:05]}  hxg4+ {[%clk 0:01:06]} 40. Kxg4 {[%clk 0:00:06]}  Ra4+ {[%clk 0:01:06]} 41. Kf3 {[%clk 0:00:03]}  Kxf5 {[%clk 0:01:06]} 42. Rxf7+ {[%clk 0:00:03]}  Kg5 {[%clk 0:01:06]} 43. Kg3 {[%clk 0:00:01]}  Ra3+ {[%clk 0:01:07]} 44. Kf2 {[%clk 0:00:01]}  a5 {[%clk 0:01:06]} 45. Rg7+ {[%clk 0:00:02]}  Kf6 {[%clk 0:01:06]} 46. Rb7 {[%clk 0:00:03]}  Rb3 {[%clk 0:01:06]} 47. g3 {[%clk 0:00:02]}  a4 {[%clk 0:01:06]} 48. Ra7 {[%clk 0:00:02]}  a3 {[%clk 0:01:06]} 49. h4 {[%clk 0:00:02]}  b5 {[%clk 0:01:05]} 50. h5 {[%clk 0:00:02]}  Kg5 {[%clk 0:01:04]} 51. g4 {[%clk 0:00:03]}  b4 {[%clk 0:00:59]} 52. Rg7+ {[%clk 0:00:03]}  Kf4 {[%clk 0:00:59]} 53. h6 {[%clk 0:00:04]}  a2 {[%clk 0:00:59]} 54. Ra7 {[%clk 0:00:03]}  Ra3 {[%clk 0:00:59]} 55. Rxa3 {[%clk 0:00:02]}  bxa3 {[%clk 0:01:00]} 56. h7 {[%clk 0:00:03]}  a1=Q {[%clk 0:01:00]} 57. h8=Q {[%clk 0:00:03]}  Qxh8 {[%clk 0:01:00]} 0-1


[Site "https://www.chess.com"]

[Event "Titled Tuesday Blitz February 21 Early 2023"]
[White "Ladan, Nicholas"]
[Black "Kohler, Aran"]
[WhiteFideId "30918855"]
[BlackFideId "1002856"]
[WhiteElo "2228"]
[BlackElo "2010"]
[Result "1-0"]
[Round "01"]
[TimeControl "180+2"]
[Date "2023.02.21"]
[WhiteClock "0:00:20"]
[BlackClock "0:00:08"]

1. d4 {[%clk 0:02:59]}  d5 {[%clk 0:02:58]} 2. Bf4 {[%clk 0:02:58]}  Nf6 {[%clk 0:02:57]} 3. e3 {[%clk 0:02:59]}  c5 {[%clk 0:02:57]} 4. c3 {[%clk 0:02:59]}  cxd4 {[%clk 0:02:54]} 5. exd4 {[%clk 0:02:59]}  Nc6 {[%clk 0:02:54]} 6. Nd2 {[%clk 0:02:58]}  Bf5 {[%clk 0:02:47]} 7. Qa4 {[%clk 0:02:53]}  Bd7 {[%clk 0:02:42]} 8. Qc2 {[%clk 0:02:49]}  g6 {[%clk 0:02:40]} 9. Ngf3 {[%clk 0:02:46]}  Rc8 {[%clk 0:02:39]} 10. Rc1 {[%clk 0:02:41]}  Bg7 {[%clk 0:02:34]} 11. Qb1 {[%clk 0:02:38]}  Bf5 {[%clk 0:02:32]} 12. Bd3 {[%clk 0:02:37]}  Bxd3 {[%clk 0:02:28]} 13. Qxd3 {[%clk 0:02:38]}  O-O {[%clk 0:02:25]} 14. O-O {[%clk 0:02:38]}  h6 {[%clk 0:02:01]} 15. Rfe1 {[%clk 0:02:37]}  e6 {[%clk 0:02:00]} 16. Ne5 {[%clk 0:02:34]}  Ne7 {[%clk 0:01:48]} 17. a4 {[%clk 0:02:19]}  a6 {[%clk 0:01:43]} 18. Qh3 {[%clk 0:02:06]}  Nh5 {[%clk 0:01:33]} 19. Be3 {[%clk 0:02:00]}  Kh7 {[%clk 0:01:21]} 20. g4 {[%clk 0:01:55]}  Nf6 {[%clk 0:01:18]} 21. Ndf3 {[%clk 0:01:25]}  Ne4 {[%clk 0:01:06]} 22. Bxh6 {[%clk 0:01:12]}  Bxh6 {[%clk 0:01:05]} 23. g5 {[%clk 0:01:12]}  Nf5 {[%clk 0:00:23]} 24. gxh6 {[%clk 0:01:07]}  Ng5 {[%clk 0:00:21]} 25. Nxg5+ {[%clk 0:00:56]}  Qxg5+ {[%clk 0:00:22]} 26. Qg4 {[%clk 0:00:53]}  Qxh6 {[%clk 0:00:21]} 27. Rcd1 {[%clk 0:00:45]}  Rc7 {[%clk 0:00:18]} 28. Rd3 {[%clk 0:00:45]}  Nh4 {[%clk 0:00:15]} 29. Rh3 {[%clk 0:00:40]}  g5 {[%clk 0:00:15]} 30. f4 {[%clk 0:00:36]}  Rg8 {[%clk 0:00:12]} 31. Kh1 {[%clk 0:00:27]}  f5 {[%clk 0:00:12]} 32. Qg3 {[%clk 0:00:20]}  Rcg7 {[%clk 0:00:09]} 33. fxg5 {[%clk 0:00:20]}  Rxg5 {[%clk 0:00:08]} 34. Rxh4 {[%clk 0:00:19]}  Rxg3 {[%clk 0:00:09]} 35. Rxh6+ {[%clk 0:00:19]}  Kxh6 {[%clk 0:00:09]} 36. hxg3 {[%clk 0:00:20]}  Rxg3 {[%clk 0:00:08]} 37. Nd7 {[%clk 0:00:20]} 1-0


[Site "https://www.chess.com"]

[Event "Titled Tuesday Blitz February 21 Early 2023"]
[White "Bilan, Danila"]
[Black "Hernandez Jimenez, Alexander Andres"]
[WhiteFideId "24161918"]
[BlackFideId "3900452"]
[WhiteElo "2303"]
[BlackElo "2134"]
[Result "1-0"]
[Round "01"]
[TimeControl "180+2"]
[Date "2023.02.21"]
[WhiteClock "0:01:38"]
[BlackClock "0:02:14"]

1. d4 {[%clk 0:02:59]}  Nf6 {[%clk 0:02:59]} 2. Nf3 {[%clk 0:02:59]}  e6 {[%clk 0:02:58]} 3. g3 {[%clk 0:02:58]}  b6 {[%clk 0:02:58]} 4. Bg2 {[%clk 0:02:58]}  Bb7 {[%clk 0:02:59]} 5. O-O {[%clk 0:02:59]}  c5 {[%clk 0:02:59]} 6. c4 {[%clk 0:02:59]}  cxd4 {[%clk 0:02:59]} 7. Nxd4 {[%clk 0:02:59]}  Bxg2 {[%clk 0:02:58]} 8. Kxg2 {[%clk 0:03:00]}  Qc7 {[%clk 0:02:57]} 9. Qd3 {[%clk 0:02:53]}  Qb7+ {[%clk 0:02:53]} 10. Qf3 {[%clk 0:02:52]}  d5 {[%clk 0:02:48]} 11. Nc3 {[%clk 0:02:36]}  Bc5 {[%clk 0:02:42]} 12. Nb3 {[%clk 0:02:30]}  Be7 {[%clk 0:02:40]} 13. Rd1 {[%clk 0:02:17]}  Nc6 {[%clk 0:02:21]} 14. cxd5 {[%clk 0:02:02]}  Ne5 {[%clk 0:02:21]} 15. Qf4 {[%clk 0:01:53]}  Ng6 {[%clk 0:02:20]} 16. Qa4+ {[%clk 0:01:49]}  Qd7 {[%clk 0:02:17]} 17. dxe6 {[%clk 0:01:42]}  fxe6 {[%clk 0:02:14]} 18. Rxd7 {[%clk 0:01:38]} 1-0


[Site "https://www.chess.com"]

[Event "Titled Tuesday Blitz February 21 Early 2023"]
[White "Deng, Henry"]
[Black "Thomas, Anysia"]
[WhiteFideId "30965454"]
[BlackFideId "670472"]
[WhiteElo "2168"]
[BlackElo "2147"]
[Result "1-0"]
[Round "01"]
[TimeControl "180+2"]
[Date "2023.02.21"]
[WhiteClock "0:00:53"]
[BlackClock "0:00:01"]

1. e4 {[%clk 0:03:00]}  c5 {[%clk 0:02:57]} 2. Nc3 {[%clk 0:03:00]}  Nc6 {[%clk 0:02:56]} 3. Bb5 {[%clk 0:03:00]}  Nd4 {[%clk 0:02:56]} 4. Nf3 {[%clk 0:03:00]}  g6 {[%clk 0:02:55]} 5. Ba4 {[%clk 0:02:58]}  Qa5 {[%clk 0:02:35]} 6. O-O {[%clk 0:02:46]}  b5 {[%clk 0:02:21]} 7. Nxd4 {[%clk 0:02:22]}  cxd4 {[%clk 0:02:08]} 8. b4 {[%clk 0:02:20]}  Qxb4 {[%clk 0:00:55]} 9. Rb1 {[%clk 0:02:19]}  Qa5 {[%clk 0:00:56]} 10. Nxb5 {[%clk 0:01:53]}  Qxa4 {[%clk 0:00:55]} 11. Nc7+ {[%clk 0:01:54]}  Kd8 {[%clk 0:00:55]} 12. Nxa8 {[%clk 0:01:54]}  Bg7 {[%clk 0:00:48]} 13. Qf3 {[%clk 0:01:49]}  Nh6 {[%clk 0:00:36]} 14. d3 {[%clk 0:01:44]}  Qc6 {[%clk 0:00:32]} 15. e5 {[%clk 0:01:31]}  Qxf3 {[%clk 0:00:30]} 16. gxf3 {[%clk 0:01:32]}  Nf5 {[%clk 0:00:27]} 17. Bf4 {[%clk 0:01:26]}  h6 {[%clk 0:00:26]} 18. e6 {[%clk 0:01:23]}  d6 {[%clk 0:00:20]} 19. exf7 {[%clk 0:01:13]}  g5 {[%clk 0:00:20]} 20. Bd2 {[%clk 0:01:13]}  Kd7 {[%clk 0:00:08]} 21. Ba5 {[%clk 0:01:12]}  Ba6 {[%clk 0:00:06]} 22. Nc7 {[%clk 0:01:12]}  Bc8 {[%clk 0:00:05]} 23. Ne8 {[%clk 0:01:11]}  Bf6 {[%clk 0:00:03]} 24. Nxf6+ {[%clk 0:01:10]}  exf6 {[%clk 0:00:03]} 25. Rfe1 {[%clk 0:01:10]}  Rf8 {[%clk 0:00:02]} 26. Rb8 {[%clk 0:00:57]}  Rxf7 {[%clk 0:00:02]} 27. Reb1 {[%clk 0:00:57]}  Nh4 {[%clk 0:00:01]} 28. Kf1 {[%clk 0:00:53]} 1-0


[Site "https://www.chess.com"]

[Event "Titled Tuesday Blitz February 21 Early 2023"]
[White "Simonovic, Miroslav"]
[Black "Yurasova, Daria"]
[WhiteFideId "919152"]
[BlackFideId "34146919"]
[WhiteElo "2082"]
[BlackElo "2095"]
[Result "0-1"]
[Round "01"]
[TimeControl "180+2"]
[Date "2023.02.21"]
[WhiteClock "0:00:26"]
[BlackClock "0:00:22"]

1. d4 {[%clk 0:02:57]}  d5 {[%clk 0:02:57]} 2. Bg5 {[%clk 0:02:57]}  f6 {[%clk 0:02:56]} 3. Bh4 {[%clk 0:02:57]}  Nh6 {[%clk 0:02:55]} 4. f3 {[%clk 0:02:58]}  Nf5 {[%clk 0:02:55]} 5. Bf2 {[%clk 0:02:58]}  Be6 {[%clk 0:02:52]} 6. e4 {[%clk 0:02:57]}  dxe4 {[%clk 0:02:51]} 7. fxe4 {[%clk 0:02:58]}  Nd6 {[%clk 0:02:49]} 8. Bd3 {[%clk 0:02:49]}  Bf7 {[%clk 0:02:49]} 9. e5 {[%clk 0:02:47]}  Nc4 {[%clk 0:02:39]} 10. b3 {[%clk 0:02:41]}  Nb6 {[%clk 0:02:39]} 11. Nf3 {[%clk 0:02:36]}  Nc6 {[%clk 0:02:35]} 12. Qe2 {[%clk 0:02:34]}  e6 {[%clk 0:02:29]} 13. exf6 {[%clk 0:02:19]}  gxf6 {[%clk 0:02:30]} 14. Bb5 {[%clk 0:02:17]}  Bb4+ {[%clk 0:02:26]} 15. c3 {[%clk 0:02:16]}  Bd6 {[%clk 0:02:16]} 16. Bxc6+ {[%clk 0:02:15]}  bxc6 {[%clk 0:02:15]} 17. Nbd2 {[%clk 0:02:11]}  Nd5 {[%clk 0:02:04]} 18. c4 {[%clk 0:01:42]}  Nf4 {[%clk 0:02:03]} 19. Qe4 {[%clk 0:01:41]}  Nxg2+ {[%clk 0:01:53]} 20. Kf1 {[%clk 0:01:41]}  Nf4 {[%clk 0:01:53]} 21. Qxc6+ {[%clk 0:01:40]}  Ke7 {[%clk 0:01:53]} 22. c5 {[%clk 0:01:33]}  Rc8 {[%clk 0:01:33]} 23. Qe4 {[%clk 0:01:22]}  Bg6 {[%clk 0:01:27]} 24. cxd6+ {[%clk 0:01:22]}  Qxd6 {[%clk 0:01:27]} 25. Qe3 {[%clk 0:01:16]}  Bd3+ {[%clk 0:01:26]} 26. Kg1 {[%clk 0:01:10]}  Rhg8+ {[%clk 0:01:16]} 27. Bg3 {[%clk 0:01:11]}  Ne2+ {[%clk 0:01:10]} 28. Kf2 {[%clk 0:01:11]}  Nxg3 {[%clk 0:01:05]} 29. Qxd3 {[%clk 0:01:03]}  Nxh1+ {[%clk 0:00:59]} 30. Rxh1 {[%clk 0:01:04]}  Rg7 {[%clk 0:00:56]} 31. Re1 {[%clk 0:01:02]}  Kf7 {[%clk 0:00:53]} 32. Qe4 {[%clk 0:00:53]}  Rcg8 {[%clk 0:00:51]} 33. Ke3 {[%clk 0:00:37]}  c5 {[%clk 0:00:42]} 34. Kd3 {[%clk 0:00:31]}  cxd4 {[%clk 0:00:38]} 35. Nxd4 {[%clk 0:00:28]}  e5 {[%clk 0:00:34]} 36. Nc4 {[%clk 0:00:20]}  Qxd4+ {[%clk 0:00:27]} 37. Qxd4 {[%clk 0:00:20]}  exd4 {[%clk 0:00:28]} 38. Nd6+ {[%clk 0:00:18]}  Kg6 {[%clk 0:00:28]} 39. Rg1+ {[%clk 0:00:17]}  Kh5 {[%clk 0:00:28]} 40. Rf1 {[%clk 0:00:15]}  Rg6 {[%clk 0:00:14]} 41. Ne4 {[%clk 0:00:13]}  Kh6 {[%clk 0:00:06]} 42. Kxd4 {[%clk 0:00:11]}  Rd8+ {[%clk 0:00:07]} 43. Kc3 {[%clk 0:00:11]}  Kg7 {[%clk 0:00:07]} 44. Nc5 {[%clk 0:00:10]}  Re8 {[%clk 0:00:06]} 45. b4 {[%clk 0:00:09]}  Re3+ {[%clk 0:00:07]} 46. Kc4 {[%clk 0:00:09]}  Rg4+ {[%clk 0:00:06]} 47. Kb5 {[%clk 0:00:09]}  Re2 {[%clk 0:00:05]} 48. Rb1 {[%clk 0:00:07]}  Rxa2 {[%clk 0:00:05]} 49. Kc6 {[%clk 0:00:07]}  Rxh2 {[%clk 0:00:05]} 50. b5 {[%clk 0:00:07]}  Rc2 {[%clk 0:00:06]} 51. b6 {[%clk 0:00:06]}  axb6 {[%clk 0:00:05]} 52. Rxb6 {[%clk 0:00:06]}  Rgc4 {[%clk 0:00:06]} 53. Rb5 {[%clk 0:00:06]}  Rxc5+ {[%clk 0:00:06]} 54. Rxc5 {[%clk 0:00:07]}  Rxc5+ {[%clk 0:00:06]} 55. Kxc5 {[%clk 0:00:08]}  Kg6 {[%clk 0:00:07]} 56. Kd4 {[%clk 0:00:09]}  f5 {[%clk 0:00:08]} 57. Ke3 {[%clk 0:00:10]}  Kf6 {[%clk 0:00:08]} 58. Kf2 {[%clk 0:00:10]}  Ke5 {[%clk 0:00:09]} 59. Kf3 {[%clk 0:00:11]}  h6 {[%clk 0:00:09]} 60. Ke3 {[%clk 0:00:12]}  f4+ {[%clk 0:00:08]} 61. Kf3 {[%clk 0:00:13]}  Kf5 {[%clk 0:00:09]} 62. Kf2 {[%clk 0:00:14]}  Ke4 {[%clk 0:00:10]} 63. Kg2 {[%clk 0:00:14]}  Ke3 {[%clk 0:00:10]} 64. Kf1 {[%clk 0:00:15]}  Kf3 {[%clk 0:00:10]} 65. Ke1 {[%clk 0:00:15]}  Kg2 {[%clk 0:00:11]} 66. Ke2 {[%clk 0:00:16]}  f3+ {[%clk 0:00:12]} 67. Ke3 {[%clk 0:00:16]}  f2 {[%clk 0:00:13]} 68. Kf4 {[%clk 0:00:17]}  f1=Q+ {[%clk 0:00:13]} 69. Ke4 {[%clk 0:00:18]}  Qf3+ {[%clk 0:00:14]} 70. Ke5 {[%clk 0:00:19]}  h5 {[%clk 0:00:14]} 71. Kd4 {[%clk 0:00:19]}  h4 {[%clk 0:00:15]} 72. Ke5 {[%clk 0:00:20]}  h3 {[%clk 0:00:16]} 73. Kd4 {[%clk 0:00:21]}  h2 {[%clk 0:00:17]} 74. Ke5 {[%clk 0:00:22]}  h1=Q {[%clk 0:00:18]} 75. Kd4 {[%clk 0:00:23]}  Qhd1+ {[%clk 0:00:18]} 76. Ke5 {[%clk 0:00:24]}  Qde2+ {[%clk 0:00:18]} 77. Kd6 {[%clk 0:00:24]}  Qfd3+ {[%clk 0:00:19]} 78. Kc5 {[%clk 0:00:25]}  Qec2+ {[%clk 0:00:20]} 79. Kb4 {[%clk 0:00:25]}  Qdb3+ {[%clk 0:00:21]} 80. Ka5 {[%clk 0:00:26]}  Qca2# {[%clk 0:00:22]} 0-1


[Site "https://www.chess.com"]

[Event "Titled Tuesday Blitz February 21 Early 2023"]
[White "Rose, Felix"]
[Black "Fecker, Noah"]
[WhiteFideId "5105722"]
[BlackFideId "1334263"]
[WhiteElo "2091"]
[BlackElo "2388"]
[Result "1-0"]
[Round "01"]
[TimeControl "180+2"]
[Date "2023.02.21"]
[WhiteClock "0:00:07"]
[BlackClock "0:00:39"]

1. e4 {[%clk 0:02:59]}  e6 {[%clk 0:02:52]} 2. d4 {[%clk 0:02:58]}  d5 {[%clk 0:02:52]} 3. Nc3 {[%clk 0:02:58]}  dxe4 {[%clk 0:02:49]} 4. Nxe4 {[%clk 0:02:59]}  Bd7 {[%clk 0:02:46]} 5. Nf3 {[%clk 0:02:58]}  Bc6 {[%clk 0:02:46]} 6. Bd3 {[%clk 0:02:58]}  Nd7 {[%clk 0:02:46]} 7. O-O {[%clk 0:02:58]}  Ngf6 {[%clk 0:02:46]} 8. Ng3 {[%clk 0:02:56]}  Be7 {[%clk 0:02:45]} 9. Re1 {[%clk 0:02:55]}  O-O {[%clk 0:02:42]} 10. b3 {[%clk 0:02:48]}  b6 {[%clk 0:02:41]} 11. Bb2 {[%clk 0:02:47]}  Bb7 {[%clk 0:02:40]} 12. c4 {[%clk 0:02:46]}  c5 {[%clk 0:02:39]} 13. Qe2 {[%clk 0:02:34]}  Re8 {[%clk 0:02:30]} 14. Rad1 {[%clk 0:02:33]}  Qc7 {[%clk 0:02:28]} 15. h3 {[%clk 0:02:30]}  cxd4 {[%clk 0:02:23]} 16. Nxd4 {[%clk 0:02:28]}  a6 {[%clk 0:02:21]} 17. Bb1 {[%clk 0:02:22]}  Nf8 {[%clk 0:02:15]} 18. Nf3 {[%clk 0:02:12]}  Ng6 {[%clk 0:02:11]} 19. Ne5 {[%clk 0:01:45]}  Bc5 {[%clk 0:02:08]} 20. a3 {[%clk 0:01:09]}  a5 {[%clk 0:02:01]} 21. Nh5 {[%clk 0:00:52]}  Nxh5 {[%clk 0:01:40]} 22. Qxh5 {[%clk 0:00:51]}  Bxg2 {[%clk 0:01:35]} 23. Rd7 {[%clk 0:00:19]}  Qc8 {[%clk 0:01:24]} 24. Rxf7 {[%clk 0:00:12]}  Rf8 {[%clk 0:01:06]} 25. Bxg6 {[%clk 0:00:09]}  hxg6 {[%clk 0:01:02]} 26. Qxg6 {[%clk 0:00:10]}  Rxf7 {[%clk 0:00:55]} 27. Qxf7+ {[%clk 0:00:10]}  Kh7 {[%clk 0:00:54]} 28. Qg6+ {[%clk 0:00:10]}  Kg8 {[%clk 0:00:53]} 29. Ng4 {[%clk 0:00:08]}  Qf8 {[%clk 0:00:41]} 30. Nf6+ {[%clk 0:00:06]}  Kh8 {[%clk 0:00:39]} 31. Qh7# {[%clk 0:00:07]} 1-0


[Site "https://www.chess.com"]

[Event "Titled Tuesday Blitz February 21 Early 2023"]
[White "Pinheiro, Iung Alicio de O."]
[Black "Kuchava, Ana"]
[WhiteFideId "2104350"]
[BlackFideId "13605348"]
[WhiteElo "2306"]
[BlackElo "2101"]
[Result "1-0"]
[Round "01"]
[TimeControl "180+2"]
[Date "2023.02.21"]
[WhiteClock "0:00:15"]
[BlackClock "0:00:10"]

1. e4 {[%clk 0:03:00]}  c5 {[%clk 0:02:58]} 2. Nf3 {[%clk 0:03:00]}  d6 {[%clk 0:02:49]} 3. Bc4 {[%clk 0:02:56]}  e6 {[%clk 0:02:48]} 4. Qe2 {[%clk 0:02:55]}  a6 {[%clk 0:02:46]} 5. a4 {[%clk 0:02:54]}  Nc6 {[%clk 0:02:42]} 6. O-O {[%clk 0:02:52]}  Nf6 {[%clk 0:02:41]} 7. e5 {[%clk 0:02:52]}  dxe5 {[%clk 0:02:40]} 8. Nxe5 {[%clk 0:02:52]}  Nxe5 {[%clk 0:02:38]} 9. Qxe5 {[%clk 0:02:52]}  Bd6 {[%clk 0:02:38]} 10. Qg5 {[%clk 0:02:42]}  O-O {[%clk 0:02:35]} 11. b3 {[%clk 0:02:42]}  h6 {[%clk 0:02:34]} 12. Qh4 {[%clk 0:02:32]}  Rb8 {[%clk 0:02:32]} 13. Na3 {[%clk 0:02:28]}  Bd7 {[%clk 0:02:29]} 14. Bb2 {[%clk 0:02:16]}  Be7 {[%clk 0:02:21]} 15. Qg3 {[%clk 0:02:13]}  b5 {[%clk 0:02:20]} 16. axb5 {[%clk 0:02:13]}  axb5 {[%clk 0:02:21]} 17. Bd3 {[%clk 0:02:13]}  Qb6 {[%clk 0:02:02]} 18. Rae1 {[%clk 0:02:02]}  Rbc8 {[%clk 0:01:45]} 19. Re4 {[%clk 0:01:55]}  c4 {[%clk 0:01:29]} 20. bxc4 {[%clk 0:01:32]}  bxc4 {[%clk 0:01:30]} 21. Bd4 {[%clk 0:01:32]}  Qd6 {[%clk 0:01:19]} 22. Be5 {[%clk 0:00:23]}  Qxa3 {[%clk 0:01:07]} 23. Rxc4 {[%clk 0:00:21]}  Kh8 {[%clk 0:00:51]} 24. Rh4 {[%clk 0:00:18]}  Qc5 {[%clk 0:00:26]} 25. Qf4 {[%clk 0:00:17]}  Bb5 {[%clk 0:00:16]} 26. Rxh6+ {[%clk 0:00:15]}  gxh6 {[%clk 0:00:10]} 27. Qxh6+ {[%clk 0:00:15]}  Kg8 {[%clk 0:00:10]} 28. Bxf6 {[%clk 0:00:15]} 1-0


[Site "https://www.chess.com"]

[Event "Titled Tuesday Blitz February 21 Early 2023"]
[White "Tarnowska, Aleksandra"]
[Black "Toncheva, Nadya"]
[WhiteFideId "1180967"]
[BlackFideId "2924056"]
[WhiteElo "1835"]
[BlackElo "2295"]
[Result "0-1"]
[Round "01"]
[TimeControl "180+2"]
[Date "2023.02.21"]
[WhiteClock "0:00:01"]
[BlackClock "0:00:46"]

1. e4 {[%clk 0:03:00]}  c5 {[%clk 0:02:59]} 2. Nf3 {[%clk 0:03:00]}  Nc6 {[%clk 0:02:58]} 3. Bb5 {[%clk 0:03:01]}  e6 {[%clk 0:02:58]} 4. O-O {[%clk 0:02:56]}  Nge7 {[%clk 0:02:58]} 5. c3 {[%clk 0:02:52]}  a6 {[%clk 0:02:58]} 6. Ba4 {[%clk 0:02:53]}  g6 {[%clk 0:02:46]} 7. d4 {[%clk 0:02:52]}  cxd4 {[%clk 0:02:45]} 8. cxd4 {[%clk 0:02:50]}  d5 {[%clk 0:02:37]} 9. e5 {[%clk 0:02:38]}  Bg7 {[%clk 0:02:33]} 10. Nc3 {[%clk 0:02:31]}  O-O {[%clk 0:02:32]} 11. Bg5 {[%clk 0:02:27]}  f6 {[%clk 0:02:27]} 12. exf6 {[%clk 0:02:26]}  Bxf6 {[%clk 0:02:28]} 13. Bh6 {[%clk 0:02:26]}  Bg7 {[%clk 0:02:26]} 14. Bxg7 {[%clk 0:02:08]}  Kxg7 {[%clk 0:02:27]} 15. Ne5 {[%clk 0:02:08]}  Nxe5 {[%clk 0:02:26]} 16. dxe5 {[%clk 0:02:09]}  Bd7 {[%clk 0:02:25]} 17. Bb3 {[%clk 0:01:15]}  Qc7 {[%clk 0:02:21]} 18. Qe2 {[%clk 0:00:49]}  d4 {[%clk 0:01:59]} 19. Nd1 {[%clk 0:00:17]}  Bb5 {[%clk 0:01:59]} 20. Qe4 {[%clk 0:00:10]}  Bxf1 {[%clk 0:01:56]} 21. Kxf1 {[%clk 0:00:11]}  Nf5 {[%clk 0:01:52]} 22. Bxe6 {[%clk 0:00:10]}  Rae8 {[%clk 0:01:46]} 23. Bxf5 {[%clk 0:00:11]}  Rxf5 {[%clk 0:01:35]} 24. Qxd4 {[%clk 0:00:11]}  Qxe5 {[%clk 0:01:33]} 25. Qxe5+ {[%clk 0:00:11]}  Rfxe5 {[%clk 0:01:33]} 26. Ne3 {[%clk 0:00:12]}  R8e7 {[%clk 0:01:30]} 27. Ke2 {[%clk 0:00:12]}  Rb5 {[%clk 0:01:29]} 28. b3 {[%clk 0:00:11]}  Rc5 {[%clk 0:01:28]} 29. Rd1 {[%clk 0:00:11]}  Rc2+ {[%clk 0:01:27]} 30. Kf3 {[%clk 0:00:10]}  Rxa2 {[%clk 0:01:26]} 31. Kg3 {[%clk 0:00:05]}  Rb2 {[%clk 0:01:24]} 32. Rd3 {[%clk 0:00:05]}  a5 {[%clk 0:01:23]} 33. Nc4 {[%clk 0:00:05]}  Ra2 {[%clk 0:01:18]} 34. Nb6 {[%clk 0:00:03]}  Ree2 {[%clk 0:01:12]} 35. Rf3 {[%clk 0:00:02]}  Red2 {[%clk 0:01:01]} 36. Nc4 {[%clk 0:00:02]}  Rd7 {[%clk 0:01:00]} 37. Ne5 {[%clk 0:00:02]}  Re7 {[%clk 0:00:58]} 38. Nc4 {[%clk 0:00:02]}  b5 {[%clk 0:00:58]} 39. Nb6 {[%clk 0:00:01]}  a4 {[%clk 0:00:57]} 40. b4 {[%clk 0:00:02]}  Rb2 {[%clk 0:00:55]} 41. Nd5 {[%clk 0:00:02]}  Rd7 {[%clk 0:00:53]} 42. Nb6 {[%clk 0:00:01]}  Rd6 {[%clk 0:00:49]} 43. Nc8 {[%clk 0:00:01]}  Re6 {[%clk 0:00:46]} 0-1


[Site "https://www.chess.com"]